fUSD/lending_fUSD_20250503
["ID","MTS","AMOUNT","RATE_DAILY","PERIOD"]
[359667763,1746234645963,-450.0,0.00019972,2]
[359667764,1746234645973,-450.0,0.00019972,2]
[359667765,1746234645983,-450.0,0.00019972,2]
[359667766,1746234645993,-450.0,0.00019972,2]
[359667767,1746234646003,-450.0,0.00019972,2]
[359667768,1746234646014,-450.0,0.00019972,2]
[359667769,1746234646024,-536.92,0.00019972,2]
[359667770,1746234646034,-450.0,0.00019972,2]
[359667771,1746234646044,-450.0,0.00019972,2]
[359667772,1746234646054,-461.75,0.00019972,2]
[359667773,1746234646064,-450.0,0.00019972,2]
[359667774,1746234646074,-450.0,0.00019972,2]
[359667775,1746234646084,-450.0,0.00019972,2]
[359667776,1746234646093,-450.0,0.00019972,2]
[359667777,1746234646103,-450.0,0.00019972,2]
[359667778,1746234646113,-450.0,0.00019972,2]
[359667779,1746234646123,-643.19,0.00019972,2]
[359667780,1746234646132,-450.0,0.00019972,2]
[359667781,1746234646142,-450.0,0.00019972,2]
[359667782,1746234646152,-450.0,0.00019972,2]
[359667783,1746234646162,-450.0,0.00019972,2]
[359667784,1746234646173,-702.43,0.00019972,2]
[359667785,1746234646183,-450.0,0.00019972,2]
[359667786,1746234646193,-450.0,0.00019972,2]
[359667787,1746234646203,-450.0,0.00019972,2]
[359667788,1746234646213,-450.0,0.00019972,2]
[359667789,1746234646223,-450.0,0.00019972,2]
[359667790,1746234646233,-2263.03,0.00019972,2]
[359667791,1746234646244,-450.0,0.00019972,2]
[359667792,1746234646254,-450.0,0.00019972,2]
[359667793,1746234646265,-509.65,0.00019972,2]
[359667794,1746234646275,-1248.57,0.00019972,2]
[359667795,1746234646286,-450.0,0.00019972,2]
[359667796,1746234646295,-561.86,0.00019972,2]
[359667797,1746234646306,-514.92,0.00019972,2]
[359667799,1746234646316,-450.0,0.00019972,2]
[359667800,1746234646326,-450.0,0.00019972,2]
[359667801,1746234646335,-450.0,0.00019972,2]
[359667802,1746234646345,-1394.08,0.00019972,2]
[359667803,1746234646355,-450.0,0.00019972,2]
[359667804,1746234646365,-999.0,0.00019972,2]
[359667805,1746234646375,-450.0,0.00019972,2]
[359667806,1746234646385,-450.0,0.00019972,2]
[359667807,1746234646399,-1174.38,0.00019972,2]
[359667808,1746234646409,-662.33,0.00019972,2]
[359667809,1746234646419,-497.17,0.00019972,2]
[359667810,1746234646430,-450.0,0.00019972,2]
[359667811,1746234646441,-450.0,0.00019972,2]
[359667812,1746234646451,-450.0,0.00019972,2]
[359667813,1746234646462,-450.0,0.00019972,2]
[359667814,1746234646472,-520.7,0.00019972,2]
[359667815,1746234646482,-450.0,0.00019972,2]
[359667816,1746234646492,-450.0,0.00019972,2]
[359667817,1746234646502,-450.0,0.00019972,2]
[359667818,1746234646512,-450.0,0.00019972,2]
[359667819,1746234646522,-450.0,0.00019972,2]
[359667820,1746234646532,-536.15,0.00019972,2]
[359667821,1746234646542,-3246.98,0.00019972,2]
[359667822,1746234646552,-450.0,0.00019972,2]
[359667823,1746234646562,-450.0,0.00019972,2]
[359667824,1746234646572,-1791.16,0.00019972,2]
[359667825,1746234646582,-450.0,0.00019972,2]
[359667826,1746234646593,-5143.9,0.00019972,2]
[359667827,1746234646603,-1099.16,0.00019972,2]
[359667828,1746234646613,-450.0,0.00019972,2]
[359667829,1746234646623,-450.0,0.00019972,2]
[359667830,1746234646633,-525.76,0.00019972,2]
[359667831,1746234646643,-547.8,0.00019972,2]
[359667832,1746234646654,-846.87,0.00019972,2]
[359667833,1746234646666,-450.0,0.00019972,2]
[359667834,1746234646676,-539.28,0.00019972,2]
[359667835,1746234646687,-450.0,0.00019972,2]
[359667836,1746234646697,-795.83,0.00019972,2]
[359667837,1746234646707,-450.0,0.00019972,2]
[359667838,1746234646717,-450.0,0.00019972,2]
[359667839,1746234646727,-1056.14,0.00019972,2]
[359667840,1746234646738,-450.0,0.00019972,2]
[359667841,1746234646748,-450.0,0.00019972,2]
[359667842,1746234646759,-239.55596524,0.00019972,2]
[359667843,1746234646769,-450.0,0.00019972,2]
[359667844,1746234646779,-598.52,0.00019972,2]
[359667845,1746234646789,-450.0,0.00019972,2]
[359667846,1746234646800,-450.0,0.00019972,2]
[359667847,1746234646810,-469.55,0.00019972,2]
[359667848,1746234646820,-450.0,0.00019972,2]
[359667849,1746234646832,-568.45,0.00019972,2]
[359667850,1746234646843,-450.0,0.00019972,2]
[359667851,1746234646853,-588.25,0.00019972,2]
[359667852,1746234646863,-1612.09,0.00019972,2]
[359667853,1746234646873,-1450.33,0.00019972,2]
[359667854,1746234646883,-559.17,0.00019972,2]
[359667855,1746234646893,-450.0,0.00019972,2]
[359667856,1746234646903,-450.0,0.00019972,2]
[359667857,1746234646912,-450.0,0.00019972,2]
[359667858,1746234646922,-822.43,0.00019972,2]
[359667859,1746234646932,-521.69,0.00019972,2]
[359667860,1746234646942,-514.71,0.00019972,2]
[359667861,1746234646952,-450.0,0.00019972,2]
[359667862,1746234646962,-450.0,0.00019972,2]
[359667863,1746234646973,-829.5,0.00019972,2]
[359667864,1746234646983,-450.0,0.00019972,2]
[359667865,1746234646993,-450.0,0.00019972,2]
[359667866,1746234647004,-450.0,0.00019972,2]
[359667867,1746234647015,-450.0,0.00019972,2]
[359667868,1746234647025,-454.35,0.00019972,2]
[359667869,1746234647035,-450.0,0.00019972,2]
[359667870,1746234647046,-450.0,0.00019972,2]
[359667871,1746234647097,-450.0,0.00019972,2]
[359667872,1746234647107,-24257.0,0.00019973,2]
[359667873,1746234647117,-501.47327578,0.00019973,2]
[359667874,1746234647128,-165.99958587,0.00019973,2]
[359667875,1746234647138,-505.12152298,0.00019973,2]
[359667876,1746234647148,-162.40954813,0.00019973,2]
[359667877,1746234647158,-502.46531198,0.00019973,2]
[359667878,1746234647167,-500.0,0.00019973,2]
[359667879,1746234647177,-500.0,0.00019973,2]
[359667880,1746234647186,-500.0,0.00019973,2]
[359667881,1746234647196,-920.0,0.00019973,2]
[359667882,1746234647205,-160.1305096,0.00019973,2]
[359667883,1746234647214,-500.0,0.00019973,2]
[359667884,1746234647224,-505.11388319,0.00019973,2]
[359667885,1746234647234,-302.52572163,0.00019973,2]
[359667886,1746234647243,-500.0,0.00019973,2]
[359667887,1746234647253,-500.0,0.00019973,2]
[359667888,1746234647263,-538.7932649,0.00019973,2]
[359667889,1746234647272,-500.0,0.00019973,2]
[359667890,1746234647282,-152.56461415,0.00019973,2]
[359667891,1746234647291,-243.25265261,0.00019973,2]
[359667892,1746234647301,-500.0,0.00019973,2]
[359667893,1746234647310,-500.0,0.00019973,2]
[359667894,1746234647321,-450.0,0.00019973,2]
[359667895,1746234647331,-450.0,0.00019973,2]
[359667896,1746234647340,-450.0,0.00019973,2]
[359667897,1746234647350,-450.0,0.00019973,2]
[359667898,1746234647359,-450.0,0.00019973,2]
[359667899,1746234647369,-450.0,0.00019973,2]
[359667900,1746234647379,-450.0,0.00019973,2]
[359667901,1746234647392,-450.0,0.00019973,2]
[359667902,1746234647402,-450.0,0.00019973,2]
[359667903,1746234647411,-450.0,0.00019973,2]
[359667904,1746234647421,-450.0,0.00019973,2]
[359667905,1746234647431,-450.0,0.00019973,2]
[359667906,1746234647442,-450.0,0.00019973,2]
[359667907,1746234647452,-450.0,0.00019973,2]
[359667908,1746234647461,-450.0,0.00019973,2]
[359667909,1746234647471,-450.0,0.00019973,2]
[359667910,1746234647481,-808.39,0.00019973,2]
[359667911,1746234647491,-461.78,0.00019973,2]
[359667912,1746234647500,-450.0,0.00019973,2]
[359667913,1746234647510,-450.0,0.00019973,2]
[359667914,1746234647519,-300.0,0.00019973,2]
[359667915,1746234647529,-1000.13,0.00019973,2]
[359667916,1746234647538,-486.43,0.00019973,2]
[359667917,1746234647548,-450.0,0.00019973,2]
[359667918,1746234647557,-450.0,0.00019973,2]
[359667919,1746234647567,-602.77,0.00019973,2]
[359667920,1746234647577,-450.0,0.00019973,2]
[359667921,1746234647587,-450.0,0.00019973,2]
[359667922,1746234647596,-450.0,0.00019973,2]
[359667923,1746234647606,-450.0,0.00019973,2]
[359667924,1746234647615,-443.38565678,0.00019973,2]
[359667925,1746234647624,-793.97,0.00019973,2]
[359667926,1746234647634,-499.1,0.00019973,2]
[359667927,1746234647643,-450.0,0.00019973,2]
[359667928,1746234647654,-450.0,0.00019973,2]
[359667929,1746234647663,-450.0,0.00019973,2]
[359667930,1746234647672,-450.0,0.00019973,2]
[359667931,1746234647681,-450.0,0.00019973,2]
[359667932,1746234647691,-450.0,0.00019973,2]
[359667933,1746234647950,-450.0,0.00019973,2]
[359667934,1746234647966,-450.0,0.00019973,2]
[359667935,1746234647976,-450.0,0.00019973,2]
[359667936,1746234647986,-2649.17,0.00019973,2]
[359667937,1746234647995,-450.0,0.00019973,2]
[359667938,1746234648005,-450.0,0.00019973,2]
[359667939,1746234648015,-450.0,0.00019973,2]
[359667940,1746234648025,-450.0,0.00019973,2]
[359667941,1746234648035,-450.0,0.00019973,2]
[359667942,1746234648046,-450.0,0.00019973,2]
[359667943,1746234648056,-450.0,0.00019973,2]
[359667944,1746234648066,-455.73,0.00019973,2]
[359667945,1746234648076,-1040.65,0.00019973,2]
[359667946,1746234648086,-450.0,0.00019973,2]
[359667947,1746234648097,-450.0,0.00019973,2]
[359667948,1746234648107,-1080.96,0.00019973,2]
[359667949,1746234648117,-450.0,0.00019973,2]
[359667950,1746234648128,-674.85,0.00019973,2]
[359667951,1746234648139,-450.0,0.00019973,2]
[359667952,1746234648149,-450.0,0.00019973,2]
[359667953,1746234648159,-494.28,0.00019973,2]
[359667954,1746234648170,-450.0,0.00019973,2]
[359667955,1746234648180,-450.0,0.00019973,2]
[359667956,1746234648189,-505.34,0.00019973,2]
[359667957,1746234648200,-450.0,0.00019973,2]
[359667958,1746234648210,-450.0,0.00019973,2]
[359667959,1746234648219,-450.0,0.00019973,2]
[359667960,1746234648230,-450.0,0.00019973,2]
[359667961,1746234648240,-450.0,0.00019973,2]
[359667962,1746234648249,-589.46,0.00019973,2]
[359667963,1746234648260,-450.0,0.00019973,2]
[359667964,1746234648269,-450.0,0.00019973,2]
[359667965,1746234648279,-472.31764425,0.00019973,2]
[359667966,1746234648289,-1074.78,0.00019973,2]
[359667967,1746234648299,-450.0,0.00019973,2]
[359667968,1746234648309,-450.0,0.00019973,2]
[359667969,1746234648319,-205.70456391,0.00019973,2]
[359667970,1746234648328,-573.05,0.00019973,2]
[359667971,1746234648338,-564.44,0.00019973,2]
[359667972,1746234648348,-1435.21,0.00019973,2]
[359667973,1746234648358,-450.0,0.00019973,2]
[359667974,1746234648368,-450.0,0.00019973,2]
[359667975,1746234648378,-711.13,0.00019973,2]
[359667976,1746234648392,-450.0,0.00019973,2]
[359667977,1746234648402,-450.0,0.00019973,2]
[359667978,1746234648411,-450.0,0.00019973,2]
[359667979,1746234648421,-501.85,0.00019973,2]
[359667980,1746234648431,-544.07,0.00019973,2]
[359667981,1746234648442,-550.01,0.00019973,2]
[359667982,1746234648452,-450.0,0.00019973,2]
[359667983,1746234648462,-450.0,0.00019973,2]
[359667984,1746234648473,-450.0,0.00019973,2]
[359667985,1746234648483,-450.0,0.00019973,2]
[359667986,1746234648492,-697.43,0.00019973,2]
[359667987,1746234648501,-583.72,0.00019973,2]
[359667988,1746234648511,-450.0,0.00019973,2]
[359667989,1746234648521,-1718.82,0.00019973,2]
[359667990,1746234648530,-247.81,0.00019973,2]
[359667991,1746234648541,-740.43,0.00019973,2]
[359667992,1746234648551,-450.0,0.00019973,2]
[359667993,1746234648561,-583.93,0.00019973,2]
[359667994,1746234648571,-662.36,0.00019973,2]
[359667995,1746234648581,-485.23,0.00019973,2]
[359667996,1746234648591,-753.8,0.00019973,2]
[359667997,1746234648600,-1167.76,0.00019973,2]
[359667998,1746234648610,-450.0,0.00019973,2]
[359667999,1746234648620,-450.0,0.00019973,2]
[359668000,1746234648630,-450.0,0.00019973,2]
[359668001,1746234648639,-280.71389357,0.00019973,2]
[359668002,1746234648649,-450.0,0.00019973,2]
[359668003,1746234648659,-533.43,0.00019973,2]
[359668004,1746234648669,-991.81,0.00019973,2]
[359668005,1746234648679,-450.0,0.00019973,2]
[359668006,1746234648688,-1223.82,0.00019973,2]
[359668007,1746234648698,-450.0,0.00019973,2]
[359668008,1746234648707,-493.78,0.00019973,2]
[359668009,1746234648717,-602.0,0.00019973,2]
[359668010,1746234648726,-514.78,0.00019973,2]
[359668011,1746234648736,-1648.11,0.00019973,2]
[359668012,1746234648745,-630.72,0.00019973,2]
[359668013,1746234648755,-677.19,0.00019973,2]
[359668014,1746234648767,-450.0,0.00019973,2]
[359668015,1746234648777,-450.0,0.00019973,2]
[359668016,1746234648786,-450.0,0.00019973,2]
[359668017,1746234648795,-462.24,0.00019973,2]
[359668018,1746234648805,-975.09,0.00019973,2]
[359668019,1746234648814,-817.66,0.00019973,2]
[359668020,1746234648823,-450.0,0.00019973,2]
[359668021,1746234648832,-450.0,0.00019973,2]
[359668022,1746234648841,-450.0,0.00019973,2]
[359668023,1746234648851,-2480.01,0.00019973,2]
[359668024,1746234648860,-1086.99,0.00019973,2]
[359668025,1746234648869,-450.0,0.00019973,2]
[359668026,1746234648879,-743.64,0.00019973,2]
[359668027,1746234648888,-2237.6,0.00019973,2]
[359668028,1746234648898,-450.0,0.00019973,2]
[359668029,1746234648908,-711.15,0.00019973,2]
[359668030,1746234648918,-587.51,0.00019973,2]
[359668031,1746234648927,-1074.92705239,0.00019976,2]
[359668032,1746234648936,-500.0,0.00019982,2]
[359668033,1746234648946,-227.99932382,0.00019982,2]
[359668034,1746234648955,-500.0,0.00019982,2]
[359668035,1746234648965,-638.0798074,0.00019982,2]
[359668036,1746234648974,-500.0,0.00019982,2]
[359668037,1746234648984,-150.0,0.00019982,2]
[359668038,1746234648994,-500.0,0.00019982,2]
[359668039,1746234649003,-500.0,0.00019982,2]
[359668040,1746234649014,-500.0,0.00019982,2]
[359668041,1746234649024,-150.0,0.00019982,2]
[359668042,1746234649033,-500.0,0.00019982,2]
[359668043,1746234649043,-500.0,0.00019982,2]
[359668044,1746234649053,-500.0,0.00019982,2]
[359668045,1746234649063,-221.73356972,0.00019982,2]
[359668046,1746234649073,-500.0,0.00019982,2]
[359668047,1746234649083,-1730.0,0.00019986,2]
[359668048,1746234649092,-250730.5062302,0.00019986,2]
[359668049,1746234649102,-3189.8667097,0.00019986,2]
[359668050,1746234649111,-2325.192497,0.00019986,2]
[359668051,1746234649121,-111538.5253366,0.00019986,2]
[359668052,1746234649130,-2532.0585422,0.00019986,2]
[359668053,1746234649140,-45628.6028664,0.00019986,2]
[359668054,1746234649150,-10046.9777984,0.00019986,2]
[359668055,1746234649159,-1254.8520932,0.00019986,2]
[359668056,1746234649169,-20776.5591218,0.00019986,2]
[359668057,1746234649179,-150.0,0.00019989,2]
[359668058,1746234649188,-1074.92705239,0.0001999,2]
[359668059,1746234649198,-1074.92705239,0.0001999,2]
[359668060,1746234649207,-500.0,0.00019999,2]
[359668061,1746234649217,-675.05638042,0.00019999,2]
[359668062,1746234649227,-337.95812922,0.00019999,2]
[359668063,1746234649237,-300.0,0.00019999,2]
[359668064,1746234649247,-300.0,0.00019999,2]
[359668065,1746234649257,-450.0,0.00019999,2]
[359668066,1746234649267,-450.0,0.00019999,2]
[359668067,1746234649277,-505.20523056,0.00019999,2]
[359668068,1746234649287,-259.59690718,0.0002,2]
[359668069,1746234649296,-553760.69348538,0.0002,2]
[359668070,1746234649306,-3284769.28310178,0.0002,2]
[359668071,1746234649867,-450.0,0.00019972,2]
[359668072,1746234649877,-9239.09345704,0.0002,2]
[359668073,1746234649888,-737603.40105174,0.0002,2]
[359668074,1746234649909,-9213.82866859,0.0002,2]
[359668075,1746234650254,-151.0,0.00019889,2]
[359668076,1746234650265,-102.37492,0.0002,2]
[359668077,1746234671489,200.0,0.00019134,2]
[359668079,1746234902769,-152.0,0.00019515,2]
[359668080,1746234949390,238.02,0.00018861,2]
[359668081,1746235042786,167.43,0.00018849,2]
[359668082,1746235112150,151.99,0.00018837,2]
[359668083,1746235112549,151.99,0.00018885,2]
[359668084,1746235112757,151.99,0.00018932,2]
[359668085,1746235229169,166.66,0.00019378,2]
[359668087,1746235347544,426.97,0.00016888,2]
[359668088,1746235347743,426.97,0.00019152,2]
[359668102,1746235727643,1000.0,0.00018768,2]
[359668103,1746235796162,23900.0,0.00018765,2]
[359668121,1746235832109,-84.89241657,0.00019515,2]
[359668122,1746235832119,-151.0,0.00019515,2]
[359668123,1746235832129,-250.0,0.00019535,2]
[359668124,1746235832140,-1200.0,0.00019596,2]
[359668125,1746235832151,-300.0,0.00019596,2]
[359668126,1746235832161,-394.32711314,0.00019597,2]
[359668127,1746235832173,-7008.20288686,0.00019597,2]
[359668128,1746235832184,-161.07157221,0.00019597,2]
[359668129,1746235832195,-2938.469,0.00019598,2]
[359668130,1746235832205,-1000.0,0.00019598,2]
[359668131,1746235832215,-7887.31516622,0.00019598,2]
[359668132,1746235832244,-1140.47350813,0.00019598,2]
[359668133,1746235832255,-3200.09805174,0.00019598,2]
[359668134,1746235832334,-14178.11701128,0.00019598,2]
[359668135,1746235832345,-14724.96946157,0.00019598,2]
[359668136,1746235832355,-2669.82034844,0.00019598,2]
[359668137,1746235832439,-251.1211,0.00019598,2]
[359668151,1746235838035,-1843.9098728,0.00019598,2]
[359668152,1746235838110,-615.60930386,0.00019598,2]
[359668153,1746235838122,-2595.2838749,0.00019598,2]
[359668154,1746235838132,-501.47327578,0.00019673,2]
[359668155,1746235838141,-502.46531198,0.00019673,2]
[359668156,1746235838150,-500.0,0.00019673,2]
[359668157,1746235838160,-500.0,0.00019673,2]
[359668158,1746235838169,-500.0,0.00019673,2]
[359668159,1746235838178,-500.0,0.00019673,2]
[359668160,1746235838187,-165.99958587,0.00019673,2]
[359668161,1746235838196,-500.0,0.00019673,2]
[359668162,1746235838206,-516.09170007,0.00019673,2]
[359668163,1746235838215,-500.0,0.00019673,2]
[359668164,1746235838224,-163.25279713,0.00019673,2]
[359668165,1746235838233,-500.0,0.00019673,2]
[359668166,1746235838242,-207.4,0.00019676,2]
[359668167,1746235838251,-154.24,0.00019686,2]
[359668168,1746235838261,-151.0,0.00019686,2]
[359668169,1746235838270,-151.0,0.00019686,2]
[359668170,1746235838279,-668.65185757,0.00019686,2]
[359668171,1746235838288,-154.24,0.00019687,2]
[359668172,1746235838297,-154.24,0.00019687,2]
[359668173,1746235838306,-154.24,0.00019687,2]
[359668174,1746235838315,-154.24,0.00019687,2]
[359668175,1746235838324,-101.52961137,0.00019687,2]
[359668176,1746235838336,-52.71038863,0.00019687,2]
[359668177,1746235838346,-154.24,0.00019687,2]
[359668178,1746235838355,-334.70763876,0.00019687,2]
[359668179,1746235838364,-500.0,0.00019687,2]
[359668180,1746235838374,-340.63311377,0.00019687,2]
[359668181,1746235838383,-251.1742546,0.00019687,2]
[359668182,1746235838393,-3958.85,0.00019688,2]
[359668183,1746235838402,-2239.81,0.00019688,2]
[359668184,1746235838411,-486.61,0.00019688,2]
[359668185,1746235838421,-648.42,0.00019688,2]
[359668186,1746235838430,-999.99,0.00019688,2]
[359668187,1746235838439,-3624.80163751,0.00019688,2]
[359668188,1746235838451,-685.20688445,0.00019688,2]
[359668189,1746235838462,-435.68171857,0.00019688,2]
[359668197,1746235840211,-3111.32892012,0.00019688,2]
[359668198,1746235840222,-2142.97083935,0.00019688,2]
[359668199,1746235840231,-333.53,0.00019688,2]
[359668200,1746235840240,-9999.99,0.00019688,2]
[359668201,1746235840250,-5184.77,0.00019688,2]
[359668202,1746235840260,-150.99,0.00019688,2]
[359668203,1746235840269,-46556.00612485,0.00019688,2]
[359668204,1746235840281,-19190.64387515,0.00019688,2]
[359668205,1746235840290,-1218.74,0.00019688,2]
[359668206,1746235840299,-9999.99,0.00019688,2]
[359668207,1746235840308,-150.99,0.00019688,2]
[359668208,1746235840316,-450.0,0.00019696,2]
[359668209,1746235840325,-450.0,0.00019696,2]
[359668210,1746235840335,-450.0,0.00019696,2]
[359668211,1746235840344,-450.0,0.00019696,2]
[359668212,1746235840353,-450.0,0.00019696,2]
[359668213,1746235840362,-234.39097713,0.00019696,2]
[359668214,1746235840509,-450.0,0.00019696,2]
[359668215,1746235840537,-450.0,0.00019696,2]
[359668216,1746235840547,-450.0,0.00019696,2]
[359668217,1746235840556,-450.0,0.00019696,2]
[359668218,1746235840567,-509.65,0.00019696,2]
[359668219,1746235840576,-5143.9,0.00019696,2]
[359668220,1746235840586,-450.0,0.00019696,2]
[359668221,1746235840597,-450.0,0.00019696,2]
[359668222,1746235840606,-469.55,0.00019696,2]
[359668223,1746235840615,-536.15,0.00019696,2]
[359668224,1746235840625,-1099.16,0.00019696,2]
[359668225,1746235840634,-450.0,0.00019696,2]
[359668226,1746235840643,-450.0,0.00019696,2]
[359668227,1746235840653,-450.0,0.00019696,2]
[359668228,1746235840663,-450.0,0.00019696,2]
[359668229,1746235840672,-450.0,0.00019696,2]
[359668230,1746235840681,-450.0,0.00019696,2]
[359668231,1746235840690,-450.0,0.00019696,2]
[359668232,1746235840700,-450.0,0.00019696,2]
[359668233,1746235840710,-1607.2,0.00019696,2]
[359668234,1746235840725,-504.964828,0.00019696,2]
[359668236,1746235840735,-450.0,0.00019696,2]
[359668237,1746235840744,-452.09724191,0.00019696,2]
[359668238,1746235840753,-450.0,0.00019696,2]
[359668239,1746235840763,-237.97141986,0.00019696,2]
[359668240,1746235840772,-450.0,0.00019697,2]
[359668241,1746235840782,-450.0,0.00019697,2]
[359668242,1746235840792,-450.0,0.00019697,2]
[359668243,1746235840801,-250.0,0.00019697,2]
[359668244,1746235840811,-450.0,0.00019697,2]
[359668246,1746235840820,-450.0,0.00019697,2]
[359668247,1746235840830,-450.0,0.00019697,2]
[359668248,1746235840840,-450.0,0.00019697,2]
[359668249,1746235840849,-450.0,0.00019697,2]
[359668250,1746235840860,-450.0,0.00019697,2]
[359668251,1746235840873,-697.486652,0.00019697,2]
[359668252,1746235840882,-450.0,0.00019697,2]
[359668253,1746235840891,-450.0,0.00019697,2]
[359668254,1746235840901,-450.0,0.00019697,2]
[359668256,1746235840910,-450.0,0.00019697,2]
[359668257,1746235840920,-450.0,0.00019697,2]
[359668259,1746235840929,-450.0,0.00019697,2]
[359668260,1746235840939,-450.0,0.00019697,2]
[359668261,1746235840950,-450.0,0.00019697,2]
[359668262,1746235840960,-450.0,0.00019697,2]
[359668263,1746235840969,-450.0,0.00019697,2]
[359668264,1746235840978,-450.0,0.00019697,2]
[359668265,1746235840988,-450.0,0.00019697,2]
[359668266,1746235840997,-450.0,0.00019697,2]
[359668267,1746235841007,-450.0,0.00019697,2]
[359668268,1746235841016,-450.0,0.00019697,2]
[359668269,1746235841026,-450.0,0.00019697,2]
[359668270,1746235841035,-450.0,0.00019697,2]
[359668271,1746235841045,-591.51,0.00019697,2]
[359668272,1746235841054,-450.0,0.00019697,2]
[359668273,1746235841063,-450.0,0.00019697,2]
[359668274,1746235841073,-450.0,0.00019697,2]
[359668275,1746235841083,-450.0,0.00019697,2]
[359668276,1746235841092,-450.0,0.00019697,2]
[359668277,1746235841101,-524.14,0.00019697,2]
[359668278,1746235841111,-450.0,0.00019697,2]
[359668279,1746235841120,-450.0,0.00019697,2]
[359668280,1746235841129,-450.0,0.00019697,2]
[359668281,1746235841139,-450.0,0.00019697,2]
[359668282,1746235841148,-450.0,0.00019697,2]
[359668283,1746235841157,-450.0,0.00019697,2]
[359668284,1746235841167,-450.0,0.00019697,2]
[359668285,1746235841176,-302.32396757,0.00019697,2]
[359668286,1746235841185,-450.0,0.00019697,2]
[359668287,1746235841195,-450.0,0.00019697,2]
[359668288,1746235841204,-450.0,0.00019697,2]
[359668289,1746235841213,-454.84,0.00019697,2]
[359668290,1746235841223,-450.0,0.00019697,2]
[359668291,1746235841232,-450.0,0.00019697,2]
[359668292,1746235841241,-450.0,0.00019697,2]
[359668293,1746235841250,-835.23,0.00019697,2]
[359668294,1746235841260,-450.0,0.00019697,2]
[359668295,1746235841269,-452.26,0.00019697,2]
[359668296,1746235841278,-450.0,0.00019697,2]
[359668297,1746235841288,-450.0,0.00019697,2]
[359668298,1746235841297,-450.0,0.00019697,2]
[359668299,1746235841306,-450.0,0.00019697,2]
[359668300,1746235841315,-643.72,0.00019697,2]
[359668301,1746235841325,-450.0,0.00019697,2]
[359668302,1746235841334,-450.0,0.00019697,2]
[359668303,1746235841343,-450.0,0.00019697,2]
[359668304,1746235841352,-637.26,0.00019697,2]
[359668305,1746235841361,-450.0,0.00019697,2]
[359668306,1746235841371,-450.0,0.00019697,2]
[359668307,1746235841381,-450.0,0.00019697,2]
[359668308,1746235841392,-450.0,0.00019697,2]
[359668309,1746235841402,-450.0,0.00019697,2]
[359668310,1746235841413,-450.0,0.00019697,2]
[359668311,1746235841424,-460.60661297,0.00019697,2]
[359668312,1746235841434,-450.0,0.00019697,2]
[359668313,1746235841443,-450.0,0.00019697,2]
[359668314,1746235841454,-450.0,0.00019697,2]
[359668315,1746235841465,-450.0,0.00019697,2]
[359668316,1746235841474,-450.0,0.00019697,2]
[359668317,1746235841483,-450.0,0.00019697,2]
[359668318,1746235841493,-450.0,0.00019697,2]
[359668319,1746235841502,-554.09941886,0.00019697,2]